lending/lending_fUSD_20250406
["ID","MTS","AMOUNT","RATE_DAILY","PERIOD"]
[357212212,1743897850797,185.09,0.00013699,2]
[357212214,1743897965748,250.0,0.00036535,120]
[357212262,1743898232226,-165.5,0.00026849,2]
[357212263,1743898232243,-313.07886982,0.00030036,2]
[357212264,1743898232253,-2256.5361,0.00030036,2]
[357212265,1743898232263,-540.23682224,0.00030122,2]
[357212266,1743898232272,-1000.0,0.00030222,2]
[357212267,1743898232282,-500.0,0.00030583,2]
[357212268,1743898232293,-500.0,0.00030583,2]
[357212269,1743898232303,-500.0,0.00030583,2]
[357212270,1743898232312,-610.3522,0.00030757,10]
[357212271,1743898232322,-250.0,0.00033039,2]
[357212272,1743898232331,-152.59821684,0.0003455,5]
[357212273,1743898232340,-500.0,0.0003455,5]
[357212274,1743898232350,-160.6692938,0.0003455,5]
[357212275,1743898232361,-151.12,0.00035,2]
[357212276,1743898232370,-378.96228411,0.00035401,2]
[357212277,1743898232380,-439.949,0.00035401,42]
[357212278,1743898232392,-191.94131655,0.000365,100]
[357212279,1743898232404,-8.05868345,0.000365,100]
[357212280,1743898232413,-965.38542216,0.00036779,2]
[357212281,1743898232425,-424.91916695,0.00036779,2]
[357212282,1743898232437,-709.65410585,0.00036779,2]
[357212283,1743898232449,-1851.04130504,0.00036779,2]
[357212284,1743898232459,-151.0,0.00036779,2]
[357212285,1743898232469,-500.0,0.00037425,2]
[357212286,1743898232479,-200.0,0.0003805,101]
[357212287,1743898232636,-159.237,0.0003843,2]
[357212288,1743898232647,-150.111,0.0003843,2]
[357212289,1743898232657,-150.199,0.0003843,2]
[357212290,1743898232667,-1284.0,0.0003843,2]
[357212291,1743898232678,-1434.0,0.0003843,2]
[357212292,1743898232687,-1275.0,0.0003843,2]
[357212293,1743898232697,-500.912,0.0003843,2]
[357212294,1743898232706,-909.0,0.0003843,2]
[357212295,1743898232716,-543.0,0.0003843,2]
[357212296,1743898232725,-3147.70275938,0.0003843,2]
[357212297,1743898232738,-947.29724062,0.0003843,2]
[357212298,1743898232748,-200.0,0.000396,102]
[357212299,1743898232758,-1219.17424482,0.000411,5]
[357212300,1743898232774,-845.20436,0.000411,5]
[357212301,1743898232786,-291.63362622,0.000411,5]
[357212302,1743898232798,-1487.98776896,0.000411,5]
[357212303,1743898232807,-200.0,0.0004115,103]
[357212304,1743898232817,-669.50083008,0.0004133,6]
[357212305,1743898232826,-150.0,0.0004143,2]
[357212306,1743898232835,-500.0,0.00041699,2]
[357212307,1743898232847,-151.0,0.00041832,2]
[357212308,1743898232857,-200.0,0.000427,104]
[357212309,1743898232867,-517.35566029,0.00044,15]
[357212310,1743898232876,-200.0,0.0004425,105]
[357212311,1743898232886,-443.33,0.00044356,2]
[357212312,1743898232895,-250.0,0.00045335,2]
[357212313,1743898232905,-150.0,0.00045521,7]
[357212314,1743898232915,-200.0,0.000458,106]
[357212315,1743898232924,-200.0,0.00045925,2]
[357212316,1743898232933,-169.76,0.00046274,120]
[357212317,1743898232942,-2378.73,0.00046322,120]
[357212318,1743898232951,-2751.0,0.0004637,120]
[357212319,1743898232961,-500.0,0.0004658,2]
[357212320,1743898232970,-443.33,0.0004662,2]
[357212321,1743898232980,-151.65,0.0004665,2]
[357212322,1743898232990,-166.49,0.00046856,2]
[357212323,1743898232999,-150.0,0.00046883,2]
[357212324,1743898233008,-9399.38626023,0.00047186,2]
[357212325,1743898233020,-1582.22003,0.00047186,2]
[357212326,1743898233031,-7220.82778182,0.00047186,2]
[357212327,1743898233043,-1865.45817321,0.00047186,2]
[357212332,1743898238072,-289.80501746,0.00036779,2]
[357212333,1743898238138,-511.50517251,0.00036779,2]
[357212334,1743898238153,-317.68981003,0.00036779,2]
[357212335,1743898238163,-343.52747262,0.00039779,2]
[357212336,1743898238175,-735.0921918,0.00039779,2]
[357212337,1743898238187,-40.38033558,0.00039779,2]
[357212338,1743898238197,-825.44581355,0.00042779,2]
[357212339,1743898238209,-278.50918645,0.00042779,2]
[357212340,1743898238219,-189.39083765,0.00047186,2]
[357212341,1743898238230,-711.95712736,0.00047186,2]
[357212342,1743898238242,-2930.75978973,0.00047186,2]
[357212343,1743898238252,-200.0,0.00047327,2]
[357212344,1743898238261,-200.0,0.0004735,107]
[357212345,1743898238271,-5862.51,0.00048114,2]
[357212346,1743898238280,-1000.0,0.00048453,2]
[357212347,1743898238290,-2000.0,0.000485,2]
[357212348,1743898238301,-443.33,0.00048884,2]
[357212349,1743898238310,-400.0,0.000489,108]
[357212350,1743898238320,-224.084,0.000499,2]
[357212351,1743898238330,-1694.7312,0.000499,2]
[357212352,1743898238340,-2000.0,0.0005,120]
[357212353,1743898238349,-700.0,0.0005,120]
[357212354,1743898238359,-500.0,0.00050767,60]
[357212355,1743898238368,-1609.0,0.000509,7]
[357212356,1743898238377,-6671.0414,0.00050968,2]
[357212357,1743898238389,-1579.7874,0.00050968,2]
[357212358,1743898238400,-1000.0,0.00051,120]
[357212359,1743898238409,-500.0,0.00051041,60]
[357212361,1743898238419,-500.0,0.00051068,2]
[357212362,1743898238430,-169.3174,0.000511,2]
[357212363,1743898238441,-443.33,0.00051147,2]
[357212364,1743898238451,-168.0,0.00051147,2]
[357212365,1743898238460,-168.0,0.00051147,2]
[357212367,1743898238471,-264.30990189,0.00051147,2]
[357212369,1743898238481,-2000.0,0.000512,2]
[357212371,1743898238491,-500.0,0.00051315,60]
[357212373,1743898238500,-500.0,0.00051589,60]
[357212375,1743898238510,-1405.46921202,0.000517,15]
[357212377,1743898238520,-1000.0,0.000517,2]
[357212379,1743898238531,-2500.0,0.000517,2]
[357212380,1743898238541,-1405.46921201,0.00051722,15]
[357212382,1743898238551,-1405.46921201,0.00051744,15]
[357212386,1743898238561,-1405.46921201,0.00051767,15]
[357212389,1743898238570,-166.7240938,0.00051778,28]
[357212392,1743898238581,-36038.676,0.00051789,2]
[357212394,1743898238590,-1405.46921201,0.00051789,15]
[357212396,1743898238599,-3894.66420625,0.00051789,15]
[357212398,1743898238612,-2219.34138653,0.00051789,15]
[357212400,1743898238621,-150.0,0.00051794,7]
[357212402,1743898238631,-500.0,0.00051799,120]
[357212404,1743898238641,-543.07050821,0.00051799,120]
[357212405,1743898238650,-500.0,0.00051799,120]
[357212406,1743898238659,-500.0,0.00051799,120]
[357212407,1743898238668,-500.0,0.00051799,120]
[357212408,1743898238678,-500.0,0.00051799,120]
[357212409,1743898238688,-12357.74097618,0.000518,2]
[357212410,1743898238699,-3476.6,0.000518,2]
[357212411,1743898238711,-12130.12545119,0.000518,2]
[357212412,1743898238723,-445.42957939,0.000518,2]
[357212413,1743898238735,-1520.0,0.000518,2]
[357212419,1743898240337,-36401.13949324,0.000518,2]
[357212420,1743898240347,-223.0,0.000518,120]
[357212421,1743898240356,-8883.0424,0.000518,2]
[357212422,1743898240366,-500.0,0.000518,2]
[357212423,1743898240376,-771.966,0.000518,2]
[357212424,1743898240387,-1230.8308,0.000518,2]
[357212425,1743898240399,-165.58712172,0.000518,28]
[357212426,1743898240409,-164.32166124,0.000518,45]
[357212427,1743898240418,-1876.23858633,0.00051801,15]
[357212428,1743898240430,-2758.36595767,0.00051801,15]
[357212429,1743898240446,-1099.04721788,0.00051801,15]
[357212430,1743898240459,-380.35383089,0.00051801,15]
[357212431,1743898240469,-102.12950507,0.00051809,120]
[357212432,1743898240481,-397.87049493,0.00051809,120]
[357212433,1743898240490,-500.0,0.00051809,120]
[357212434,1743898240499,-500.0,0.00051809,120]
[357212435,1743898240509,-500.0,0.00051809,120]
[357212436,1743898240519,-500.0,0.00051809,120]
[357212437,1743898240530,-500.0,0.00051809,120]
[357212438,1743898240539,-500.0,0.00051809,120]
[357212439,1743898240549,-500.0,0.00051809,120]
[357212440,1743898240559,-317.78016784,0.00051809,120]
[357212441,1743898240568,-500.0,0.00051809,120]
[357212442,1743898240579,-500.0,0.00051809,120]
[357212443,1743898240588,-621.22181743,0.00051809,120]
[357212444,1743898240598,-500.0,0.00051809,120]
[357212445,1743898240607,-500.0,0.00051809,120]
[357212446,1743898240616,-500.0,0.00051809,120]
[357212447,1743898240627,-500.0,0.00051809,120]
[357212448,1743898240637,-500.0,0.00051809,100]
[357212449,1743898240647,-500.0,0.00051809,120]
[357212450,1743898240657,-500.0,0.00051809,120]
[357212451,1743898240666,-500.0,0.00051809,120]
[357212452,1743898240676,-500.0,0.00051809,120]
[357212453,1743898240687,-500.0,0.00051809,2]
[357212454,1743898240697,-500.0,0.00051809,2]
[357212455,1743898240706,-500.0,0.00051809,120]
[357212456,1743898240716,-633.0988922,0.00051809,2]
[357212457,1743898240726,-500.0,0.00051809,2]
[357212458,1743898240737,-500.0,0.0005181,120]
[357212459,1743898240747,-500.0,0.0005181,120]
[357212460,1743898240756,-500.0,0.0005181,120]
[357212461,1743898240766,-500.0,0.0005181,120]
[357212462,1743898240777,-584.28188745,0.0005181,120]
[357212463,1743898240787,-518.5123681,0.0005181,120]
[357212464,1743898240796,-500.0,0.0005181,120]
[357212465,1743898240807,-500.0,0.0005181,120]
[357212466,1743898240816,-500.0,0.0005181,120]
[357212467,1743898240826,-500.0,0.0005181,120]
[357212468,1743898240836,-500.0,0.0005181,7]
[357212469,1743898240846,-574.75476017,0.0005181,120]
[357212470,1743898240856,-500.0,0.0005181,120]
[357212471,1743898240866,-217.37,0.0005181,120]
[357212472,1743898240876,-500.0,0.0005181,120]
[357212473,1743898240885,-500.0,0.0005181,120]
[357212474,1743898240895,-500.0,0.0005181,120]
[357212475,1743898240905,-500.0,0.0005181,120]
[357212476,1743898240915,-285.10326964,0.0005181,120]
[357212477,1743898240925,-1405.46921201,0.00051811,15]
[357212478,1743898240934,-150.0,0.00051812,7]
[357212479,1743898240944,-6114.00559277,0.00051814,15]
[357212480,1743898240953,-165.58712169,0.00051825,28]
[357212481,1743898240963,-150.0,0.00051825,7]
[357212482,1743898240973,-6114.00559277,0.00051826,15]
[357212483,1743898240982,-1405.46921201,0.00051833,15]
[357212484,1743898240992,-6114.00559277,0.00051838,15]
[357212485,1743898241002,-165.58712169,0.0005185,28]
[357212486,1743898241011,-6114.00559277,0.00051851,15]
[357212487,1743898241020,-1405.46921201,0.00051856,15]
[357212488,1743898241029,-150.0,0.00051857,7]
[357212489,1743898241038,-6114.00559277,0.00051863,15]
[357212490,1743898241047,-500.0,0.00051863,60]
[357212491,1743898241057,-165.58712169,0.00051875,28]
[357212492,1743898241066,-6114.00559277,0.00051875,15]
[357212493,1743898241076,-1405.46921201,0.00051878,15]
[357212494,1743898241085,-155314.93280933,0.00051878,120]
[357212495,1743898241095,-18531.5334599,0.00051879,4]
[357212496,1743898241105,-150.74,0.0005188,120]
[357212497,1743898241114,-6114.00559277,0.00051888,15]
[357212498,1743898241124,-150.0,0.00051888,7]
[357212499,1743898241133,-500.0,0.00051889,120]
[357212500,1743898241142,-522.68218665,0.00051889,120]
[357212501,1743898241152,-500.0,0.00051889,120]
[357212502,1743898241161,-500.0,0.00051889,120]
[357212503,1743898241171,-500.0,0.00051889,30]
[357212504,1743898241181,-317.61896967,0.00051889,120]
[357212505,1743898241193,-182.38103033,0.00051889,120]
[357212506,1743898241203,-500.0,0.00051889,120]
[357212507,1743898241212,-316.12754437,0.00051889,120]
[357212508,1743898241222,-274.47209595,0.00051889,120]
[357212509,1743898241233,-225.52790405,0.00051889,120]
[357212510,1743898241243,-506.15580656,0.00051889,120]
[357212511,1743898241252,-518.1781737,0.00051889,120]
[357212512,1743898241262,-500.0,0.00051889,120]
[357212513,1743898241271,-200.0,0.00051889,7]
[357212514,1743898241280,-500.0,0.00051889,120]
[357212515,1743898241290,-500.0,0.00051889,120]
[357212516,1743898241299,-375.32966312,0.00051889,120]
[357212517,1743898241308,-525.36671879,0.00051889,120]
[357212518,1743898241316,-247.1317422,0.00051889,120]
[357212519,1743898241326,-363.31141541,0.00051889,120]
[357212520,1743898241340,-136.68858459,0.00051889,120]
[357212521,1743898241349,-158.57941371,0.00051889,120]
[357212522,1743898241362,-341.42058629,0.00051889,120]
[357212523,1743898241371,-390.76276449,0.00051889,120]
[357212524,1743898241384,-109.23723551,0.00051889,120]
[357212525,1743898241399,-330.4874365,0.00051889,120]
[357212533,1743898243231,-240.99092487,0.00051889,120]
[357212536,1743898243242,-510.12335559,0.00051889,120]
[357212537,1743898243253,-532.72464301,0.00051889,120]
[357212539,1743898243262,-500.0,0.00051889,120]
[357212541,1743898243272,-510.00650528,0.00051889,60]
[357212543,1743898243281,-540.99133605,0.00051889,120]
[357212548,1743898243291,-506.29601165,0.00051889,120]
[357212549,1743898243430,-507.22089665,0.00051889,120]
[357212550,1743898243439,-500.0,0.00051889,120]
[357212551,1743898243448,-500.0,0.00051889,120]
[357212552,1743898243458,-532.31396748,0.00051889,120]
[357212553,1743898243469,-500.0,0.00051889,120]
[357212554,1743898243479,-524.67731589,0.00051889,120]
[357212555,1743898243489,-500.0,0.00051889,120]
[357212556,1743898243499,-500.0,0.00051889,120]
[357212557,1743898243508,-500.0,0.00051889,120]
[357212558,1743898243518,-186.35725802,0.00051889,120]
[357212559,1743898243589,-313.64274198,0.00051889,120]
[357212560,1743898243599,-393.89865533,0.00051889,120]
[357212561,1743898243610,-113.46045021,0.00051889,120]
[357212562,1743898243620,-406.27996736,0.00051889,120]
[357212564,1743898243629,-500.0,0.00051889,120]
[357212566,1743898243638,-500.0,0.00051889,120]
[357212568,1743898243647,-530.02311964,0.00051889,120]
[357212569,1743898243657,-410.43243115,0.00051889,120]
[357212570,1743898243669,-135.36620453,0.00051889,120]
[357212571,1743898243678,-522.99134473,0.00051889,120]
[357212573,1743898243688,-500.0,0.00051889,120]
[357212574,1743898243697,-544.09042836,0.00051889,120]
[357212575,1743898243707,-507.05349357,0.00051889,120]
[357212576,1743898243717,-506.77477825,0.00051889,120]
[357212577,1743898243726,-541.1598535,0.00051889,120]
[357212578,1743898243736,-625.76362508,0.00051889,120]
[357212579,1743898243746,-518.84070176,0.00051889,120]
[357212580,1743898243756,-573.57113718,0.00051889,120]
[357212581,1743898243765,-500.0,0.00051889,120]
[357212582,1743898243774,-500.0,0.00051889,10]
[357212583,1743898243783,-524.75009786,0.00051889,120]
[357212584,1743898243793,-523.57665987,0.00051889,120]
[357212585,1743898243802,-520.08564843,0.00051889,120]
[357212586,1743898243812,-504.34623359,0.00051889,120]
[357212587,1743898243822,-500.0,0.00051889,120]
[357212588,1743898243831,-500.0,0.00051889,10]
[357212589,1743898243841,-520.10055549,0.00051889,120]
[357212590,1743898243850,-483.68626695,0.00051889,120]
[357212591,1743898243859,-528.06905443,0.00051889,120]
[357212592,1743898243869,-508.00856889,0.00051889,120]
[357212593,1743898243878,-500.0,0.00051889,120]
[357212594,1743898243887,-564.55869302,0.00051889,120]
[357212595,1743898243897,-500.0,0.00051889,120]
[357212596,1743898243906,-500.0,0.00051889,120]
[357212597,1743898243915,-574.54445446,0.00051889,120]
[357212598,1743898243924,-500.0,0.00051889,120]
[357212599,1743898243933,-500.0,0.00051889,120]
[357212600,1743898243942,-539.65386318,0.00051889,120]
[357212601,1743898243950,-500.0,0.00051889,120]
[357212602,1743898243960,-500.0,0.00051889,120]
[357212603,1743898243968,-500.0,0.00051889,120]
[357212604,1743898243977,-487.89332379,0.00051889,120]
[357212605,1743898243986,-500.0,0.00051889,120]
[357212606,1743898243996,-523.09539051,0.00051889,120]
[357212607,1743898244006,-500.0,0.00051889,120]
[357212608,1743898244015,-503.73948512,0.00051889,120]
[357212609,1743898244025,-505.77435798,0.00051889,120]
[357212610,1743898244037,-508.25577,0.00051889,120]
[357212611,1743898244047,-522.45275744,0.00051889,120]
[357212612,1743898244056,-500.0,0.00051889,120]
[357212613,1743898244066,-503.02211405,0.00051889,120]
[357212614,1743898244075,-494.63964005,0.00051889,120]
[357212615,1743898244084,-507.9709791,0.00051889,120]
[357212616,1743898244093,-500.0,0.00051889,120]
[357212617,1743898244102,-517.7155255,0.00051889,120]
[357212618,1743898244112,-315.62021063,0.00051889,120]
[357212619,1743898244121,-514.32027791,0.00051889,120]
[357212620,1743898244130,-512.54812131,0.00051889,120]
[357212621,1743898244139,-484.35204966,0.00051889,120]
[357212622,1743898244153,-39.00486072,0.00051889,120]
[357212623,1743898244162,-500.0,0.00051889,120]
[357212624,1743898244171,-573.57767116,0.00051889,120]
[357212625,1743898244180,-565.16402811,0.00051889,120]
[357212626,1743898244189,-518.71005962,0.00051889,120]
[357212627,1743898244199,-543.02616865,0.00051889,120]
[357212628,1743898244208,-526.80648746,0.00051889,120]
[357212629,1743898244217,-500.0,0.00051889,120]
[357212630,1743898244227,-507.16706568,0.00051889,120]
[357212631,1743898244236,-503.40854913,0.00051889,120]
[357212632,1743898244246,-570.67194391,0.00051889,120]
[357212633,1743898244255,-500.0,0.00051889,120]
[357212634,1743898244265,-415.16614328,0.00051889,120]
[357212635,1743898244274,-227.1567423,0.00051889,120]
[357212636,1743898244284,-500.0,0.00051889,120]
[357212637,1743898244293,-523.01179669,0.00051889,120]
[357212638,1743898244302,-515.21796305,0.00051889,120]
[357212639,1743898244312,-516.79885073,0.00051889,120]
[357212640,1743898244321,-511.45713236,0.00051889,120]
[357212641,1743898244330,-500.0,0.00051889,120]
[357212642,1743898244340,-510.20882117,0.00051889,120]
[357212643,1743898244349,-504.915256,0.00051889,120]
[357212644,1743898244358,-521.75635789,0.00051889,120]
[357212645,1743898244367,-330.86452433,0.00051889,120]
[357212646,1743898244376,-522.41897847,0.00051889,120]
[357212647,1743898244387,-515.86033751,0.00051889,120]
[357212648,1743898244400,-500.0,0.00051889,120]
[357212649,1743898244411,-509.37834585,0.00051889,120]
[357212650,1743898244421,-508.4038156,0.00051889,120]
[357212651,1743898244431,-515.64588554,0.00051889,120]
[357212652,1743898244440,-521.81484683,0.00051889,120]
[357212653,1743898244449,-509.7505455,0.00051889,120]
[357212654,1743898244458,-500.0,0.00051889,120]
[357212655,1743898244468,-520.7161312,0.00051889,120]
[357212656,1743898244478,-536.57696602,0.00051889,120]
[357212657,1743898244489,-509.28792984,0.00051889,120]
[357212658,1743898244498,-516.49980644,0.00051889,120]
[357212659,1743898244507,-500.0,0.00051889,120]
[357212660,1743898244516,-512.81541993,0.00051889,120]
[357212661,1743898244525,-500.0,0.00051889,120]
[357212662,1743898244535,-500.0,0.00051889,120]
[357212663,1743898244544,-216.08292931,0.00051889,120]
[357212664,1743898245144,-283.91707069,0.00051889,120]
[357212665,1743898245154,-506.99699451,0.00051889,120]
[357212666,1743898245162,-500.0,0.00051889,120]
[357212667,1743898245171,-500.0,0.00051889,120]
[357212668,1743898245180,-500.0,0.00051889,120]
[357212669,1743898245189,-500.0,0.00051889,120]
[357212670,1743898245198,-500.0,0.00051889,30]
[357212671,1743898245207,-530.59867301,0.00051889,120]
[357212672,1743898245216,-518.44827639,0.00051889,120]
[357212673,1743898245225,-512.64918383,0.00051889,120]
[357212674,1743898245234,-500.0,0.00051889,120]
[357212675,1743898245243,-458.61573263,0.00051889,120]
[357212676,1743898245255,-41.38426737,0.00051889,120]
[357212677,1743898245264,-500.0,0.00051889,120]
[357212678,1743898245273,-500.0,0.00051889,120]
[357212679,1743898245282,-500.0,0.00051889,120]
[357212680,1743898245291,-500.0,0.00051889,120]
[357212681,1743898245300,-215.06989819,0.00051889,120]
[357212682,1743898245312,-283.15363296,0.00051889,120]
[357212683,1743898245321,-480.27201025,0.00051889,120]
[357212684,1743898245332,-19.72798975,0.00051889,120]
[357212685,1743898245341,-233.12207232,0.00051889,120]
[357212686,1743898245351,-343.36193614,0.00051889,120]
[357212687,1743898245360,-585.5596971,0.00051889,60]
[357212688,1743898245369,-562.67591789,0.00051889,120]
[357212689,1743898245379,-500.0,0.00051889,120]
[357212690,1743898245390,-500.0,0.00051889,120]
[357212691,1743898245401,-210.67106284,0.00051889,120]
[357212692,1743898245410,-500.0,0.00051889,120]
[357212693,1743898245420,-500.0,0.00051889,120]
[357212694,1743898245429,-527.5892004,0.00051889,120]
[357212695,1743898245439,-500.0,0.00051889,120]
[357212696,1743898245448,-429.82265889,0.00051889,120]
[357212697,1743898245457,-500.0,0.00051889,120]
[357212698,1743898245468,-500.0,0.00051889,120]
[357212699,1743898245478,-500.0,0.00051889,120]
[357212700,1743898245489,-593.4091937,0.00051889,120]
[357212701,1743898245499,-500.0,0.00051889,120]
[357212702,1743898245508,-500.0,0.00051889,120]
[357212703,1743898245518,-500.0,0.00051889,120]
[357212704,1743898245527,-307.94148761,0.00051889,120]
[357212705,1743898245536,-524.57378483,0.00051889,120]
[357212706,1743898245544,-500.0,0.00051889,120]
[357212707,1743898245554,-500.0,0.00051889,120]
[357212708,1743898245563,-602.14942035,0.00051889,120]
[357212709,1743898245573,-500.0,0.00051889,120]
[357212710,1743898245583,-500.0,0.00051889,120]
[357212711,1743898245592,-500.0,0.00051889,120]
[357212712,1743898245602,-500.0,0.00051889,120]
[357212713,1743898245611,-500.0,0.00051889,120]
[357212714,1743898245620,-619.60282413,0.00051889,120]
[357212715,1743898245629,-500.0,0.00051889,120]
[357212716,1743898245639,-500.0,0.00051889,120]
[357212717,1743898245649,-500.0,0.00051889,120]
[357212718,1743898245658,-500.0,0.00051889,120]
[357212719,1743898245668,-500.0,0.00051889,120]
[357212720,1743898245678,-500.0,0.00051889,120]
[357212721,1743898245690,-500.0,0.00051889,120]
[357212722,1743898245701,-500.0,0.00051889,120]
[357212723,1743898245710,-607.07330459,0.00051889,120]
[357212724,1743898245719,-500.0,0.00051889,120]
[357212725,1743898245729,-516.93911319,0.00051889,120]
[357212726,1743898245738,-500.0,0.00051889,120]
[357212727,1743898245750,-500.0,0.00051889,120]
[357212728,1743898245760,-500.0,0.00051889,120]
[357212729,1743898245769,-500.0,0.00051889,120]
[357212730,1743898245779,-546.45093409,0.00051889,120]
[357212731,1743898245788,-587.44971721,0.00051889,120]
[357212732,1743898245798,-417.10760886,0.00051889,120]
[357212733,1743898245807,-500.0,0.00051889,120]
[357212734,1743898245816,-541.66423419,0.00051889,120]
[357212735,1743898245825,-555.02303931,0.00051889,120]
[357212736,1743898245835,-500.0,0.00051889,10]
[357212737,1743898245844,-518.22374736,0.00051889,120]
[357212738,1743898245854,-355.77,0.00051889,30]
[357212739,1743898245863,-509.12995834,0.00051889,120]
[357212740,1743898245872,-500.0,0.00051889,10]
[357212741,1743898245883,-500.0,0.00051889,120]
[357212742,1743898245892,-500.0,0.00051889,120]
[357212743,1743898245901,-500.0,0.00051889,30]
[357212744,1743898245911,-500.0,0.00051889,120]
[357212746,1743898245920,-2000.0,0.00051889,2]
[357212747,1743898245929,-522.89022764,0.00051889,120]
[357212748,1743898245938,-500.0,0.00051889,120]
[357212749,1743898245947,-500.0,0.00051889,120]
[357212750,1743898245957,-500.0,0.00051889,120]
[357212751,1743898245966,-500.0,0.00051889,120]
[357212752,1743898245975,-500.0,0.00051889,120]
[357212753,1743898245984,-500.0,0.00051889,120]
[357212754,1743898245995,-500.0,0.00051889,120]
[357212755,1743898246004,-555.05242474,0.00051889,120]
[357212756,1743898246014,-500.0,0.00051889,120]
[357212757,1743898246023,-500.0,0.00051889,120]
[357212758,1743898246032,-500.0,0.00051889,7]
[357212759,1743898246042,-500.0,0.00051889,120]
[357212760,1743898246052,-500.0,0.00051889,120]
[357212761,1743898246061,-500.0,0.00051889,120]
[357212762,1743898246070,-500.0,0.00051889,120]
[357212763,1743898246080,-500.0,0.00051889,120]
[357212764,1743898246090,-500.0,0.00051889,120]
[357212765,1743898246100,-500.0,0.00051889,2]
[357212766,1743898246109,-633.82085132,0.00051889,120]
[357212767,1743898246118,-64860.3671096,0.0005189,4]
[357212768,1743898246128,-176049.567869,0.0005189,4]
[357212769,1743898246137,-1005.06468939,0.0005189,7]
[357212770,1743898246146,-500.0,0.00051899,120]
[357212771,1743898246156,-500.0,0.00051899,120]
[357212772,1743898246165,-179.2,0.00051899,120]
[357212773,1743898246175,-1260.0,0.000519,7]
[357212774,1743898246184,-1038.23478444,0.000519,61]
[357212775,1743898246193,-115690.978501,0.000519,61]
[357212776,1743898246203,-316080.89110029,0.000519,120]
[357212777,1743898246212,-541000.0,0.000519,120]
[357212778,1743898246221,-241.44,0.000519,14]
[357212779,1743898246230,-165.58712169,0.000519,29]
[357212780,1743898246240,-151.0,0.000519,120]
[357212781,1743898246249,-156.767062,0.000519,120]
[357212782,1743898246258,-151.0,0.000519,120]
[357212783,1743898246269,-151.0,0.000519,120]
[357212784,1743898246278,-151.0,0.000519,120]
[357212785,1743898246288,-160.951412,0.000519,120]
[357212786,1743898246297,-151.0,0.000519,120]
[357212787,1743898246307,-151.0,0.000519,120]
[357212788,1743898246316,-151.0,0.000519,90]
[357212789,1743898246326,-151.0,0.000519,120]
[357212790,1743898246335,-151.0,0.000519,120]
[357212791,1743898246345,-151.0,0.000519,120]
[357212792,1743898246354,-151.0,0.000519,120]
[357212793,1743898246364,-151.0,0.000519,120]
[357212794,1743898246373,-183.830562,0.000519,120]
[357212795,1743898246383,-1405.46921201,0.000519,15]
[357212796,1743898246395,-6114.00559277,0.000519,15]
[357212797,1743898246405,-151.0,0.000519,120]
[357212798,1743898246416,-151.0,0.000519,120]
[357212799,1743898246428,-14508.836866,0.00051904,2]
[357212800,1743898246439,-3106.5341776,0.00051909,2]
[357212801,1743898246450,-150.0,0.00051912,30]
[357212802,1743898246461,-164.32166123,0.00051925,46]
[357212803,1743898246474,-150.0,0.00051928,7]
[357212804,1743898246484,-150.0,0.00051939,7]
[357212805,1743898246494,-150.0,0.00051944,7]
[357212806,1743898246505,-150.0,0.00051944,7]
[357212807,1743898246514,-3106.5341776,0.00051964,2]
[357212808,1743898246523,-3106.5341776,0.00051964,2]
[357212809,1743898246533,-3106.5341776,0.00051964,2]
[357212810,1743898246543,-3106.5341776,0.00051964,2]
[357212811,1743898246553,-3106.5341776,0.00051964,2]